Workbook

Sheet Page 14
A1: COMPUTING THE PRESENT VALUE
A2: Discount rate | B2: 10%
A4: Year | B4: Cash flow | C4: Present value
A5: 1 | B5: 100 | C5: =B5/(1+$B$2)^A5 -> 90.9091 | D5: =getformula(C5) -> <-- =B5/(1+$B$2)^A5
A6: 2 | B6: 100 | C6: =B6/(1+$B$2)^A6 -> 82.6446 | D6: =getformula(C6) -> <-- =B6/(1+$B$2)^A6
A7: 3 | B7: 100 | C7: =B7/(1+$B$2)^A7 -> 75.1315 | D7: =getformula(C7) -> <-- =B7/(1+$B$2)^A7
A8: 4 | B8: 100 | C8: =B8/(1+$B$2)^A8 -> 68.3013 | D8: =getformula(C8) -> <-- =B8/(1+$B$2)^A8
A9: 5 | B9: 100 | C9: =B9/(1+$B$2)^A9 -> 62.0921 | D9: =getformula(C9) -> <-- =B9/(1+$B$2)^A9
A11: Net present value
A12: =" Summing cells "&CHAR(COLUMN(C5)+64)&ROW(C5)&":"&CHAR(COLUMN(C9)+64)&ROW(C9) -> Summing cells C5:C9 | B12: =SUM(C5:C9) -> 379.08 | C12: =getformula(B12) -> <-- =SUM(C5:C9)
A13: Using Excel's NPV function | B13: =NPV(B2,B5:B9) -> 379.08 | C13: =getformula(B13) -> <-- =NPV(B2,B5:B9)
A14: Using Excel's PV function | B14: =PV(B2,5,-100) -> 379.08 | C14: =getformula(B14) -> <-- =PV(B2,5,-100)

Sheet Page 15
A1: COMPUTING THE PRESENT VALUE In this example the cash flows are not equal Either discount each cash flow separately or use Excel's NPV function Excel's PV doesn't work for this case
A2: Discount rate | B2: 10%
A4: Year | B4: Cash flow | C4: Present value | D4: Present value of each cash flow
A5: 1 | B5: 100 | C5: =B5/(1+$B$2)^A5 -> 90.9091 | D5: =getformula(C5) -> <-- =B5/(1+$B$2)^A5
A6: 2 | B6: 200 | C6: =B6/(1+$B$2)^A6 -> 165.2893 | D6: =getformula(C6) -> <-- =B6/(1+$B$2)^A6
A7: 3 | B7: 300 | C7: =B7/(1+$B$2)^A7 -> 225.3944 | D7: =getformula(C7) -> <-- =B7/(1+$B$2)^A7
A8: 4 | B8: 400 | C8: =B8/(1+$B$2)^A8 -> 273.2054 | D8: =getformula(C8) -> <-- =B8/(1+$B$2)^A8
A9: 5 | B9: 500 | C9: =B9/(1+$B$2)^A9 -> 310.4607 | D9: =getformula(C9) -> <-- =B9/(1+$B$2)^A9
A11: Net present value
A12: =" Summing cells "&CHAR(COLUMN(C5)+64)&ROW(C5)&":"&CHAR(COLUMN(C9)+64)&ROW(C9) -> Summing cells C5:C9 | B12: =SUM(C5:C9) -> 1,065.26 | C12: =getformula(B12) -> <-- =SUM(C5:C9)
A13: Using Excel's NPV function | B13: =NPV(B2,B5:B9) -> 1,065.26 | C13: =getformula(B13) -> <-- =NPV(B2,B5:B9)

Sheet Page 16
A1: COMPUTING THE NET PRESENT VALUE
A2: Discount rate | B2: 10%
A4: Year | B4: Cash flow | C4: Present value
A5: 0 | B5: -250 | C5: =B5/(1+$B$2)^A5 -> -250.00 | D5: =getformula(C5) -> <-- =B5/(1+$B$2)^A5
A6: 1 | B6: 100 | C6: 90.91 | D6: <-- =B6/(1+$B$2)^A6
A7: 2 | B7: 100 | C7: 82.64 | D7: <-- =B7/(1+$B$2)^A7
A8: 3 | B8: 100 | C8: 75.13 | D8: <-- =B8/(1+$B$2)^A8
A9: 4 | B9: 100 | C9: 68.30 | D9: <-- =B9/(1+$B$2)^A9
A10: 5 | B10: 100 | C10: 62.09 | D10: <-- =B10/(1+$B$2)^A10
A12: Net present value
A13: =" Summing cells "&CHAR(COLUMN(C5)+64)&ROW(C5)&":"&CHAR(COLUMN(C10)+64)&ROW(C10) -> Summing cells C5:C10 | B13: =SUM(C5:C10) -> 129.08 | C13: =getformula(B13) -> <-- =SUM(C5:C10)
A14: Using Excel's NPV function | B14: =B5+NPV(B2,B6:B10) -> 129.08 | C14: =getformula(B14) -> <-- =B5+NPV(B2,B6:B10)

Sheet Page 18, top
A1: COMPUTING THE VALUE OF A FINITE ANNUITY
A2: Periodic payment, C | B2: 1,000
A3: Number of future periods paid, n | B3: 5
A4: Discount rate, r | B4: 12%
A5: Present value of annuity
A6: Using formula | B6: =B2*(1-1/(1+B4)^B3)/B4 -> 3,604.78 | C6: =getformula(B6) -> <-- =B2*(1-1/(1+B4)^B3)/B4
A7: Using Excel's PV function | B7: =PV(B4,B3,-B2) -> 3,604.78 | C7: =getformula(B7) -> <-- =PV(B4,B3,-B2)
A9: Period | B9: Annuity payment
A10: 1 | B10: =B2 -> 1,000.00 | C10: =getformula(B10) -> <-- =B2
A11: 2 | B11: =B10 -> 1,000.00
A12: 3 | B12: =B11 -> 1,000.00
A13: 4 | B13: =B12 -> 1,000.00
A14: 5 | B14: =B13 -> 1,000.00
A16: Present value using Excel's NPV function | B16: =NPV(B4,B10:B14) -> 3,604.78 | C16: =getformula(B16) -> <-- =NPV(B4,B10:B14)

Sheet Page 18, middle
A1: COMPUTING THE VALUE OF AN INFINITE ANNUITY
A2: Periodic payment, C | B2: 1,000
A3: Discount rate, r | B3: 12%
A4: Present value of annuity | B4: =B2/B3 -> 8,333.33 | C4: =getformula(B4) -> <-- =B2/B3

Sheet Page 19, bottom
A1: COMPUTING THE VALUE OF AN INFINITE GROWING ANNUITY
A2: Periodic payment, C | B2: 1,000 | C2: <-- Starting at date 1
A3: Growth rate of payments, g | B3: 6%
A4: Discount rate, r | B4: 12%
A5: Present value of annuity | B5: =B2/(B4-B3) -> 16,666.67 | C5: =getformula(B5) -> <-- =B2/(B4-B3)

Sheet Page 21, top
A1: INTERNAL RATE OF RETURN
A2: Year | B2: Cash flow
A3: 0 | B3: -800
A4: 1 | B4: 200
A5: 2 | B5: 250
A6: 3 | B6: 300
A7: 4 | B7: 350
A8: 5 | B8: 400
A10: Internal rate of return | B10: =IRR(B3:B8) -> 22.16% | C10: =getformula(B10) -> <-- =IRR(B3:B8)

Sheet Page 21, bottom
A1: INTERNAL RATE OF RETURN
A2: Discount rate | B2: 12%
A4: Year | B4: Cash flow
A5: 0 | B5: -800
A6: 1 | B6: 200
A7: 2 | B7: 250
A8: 3 | B8: 300
A9: 4 | B9: 350
A10: 5 | B10: 400
A12: Net present value (NPV) | B12: =B5+NPV(B2,B6:B10) -> 240.81 | C12: =getformula(B12) -> <-- =B5+NPV(B2,B6:B10)

Sheet Page22
A1: INTERNAL RATE OF RETURN
A2: Discount rate | B2: 22.16%
A4: Year | B4: Cash flow
A5: 0 | B5: -800
A6: 1 | B6: 200
A7: 2 | B7: 250
A8: 3 | B8: 300
A9: 4 | B9: 350
A10: 5 | B10: 400
A12: Net present value (NPV) | B12: =B5+NPV(B2,B6:B10) -> 0.00 | C12: =getformula(B12) -> <-- =B5+NPV(B2,B6:B10)

Sheet Pages24-26
A1: USING A LOAN TABLE TO FIND THE IRR
A2: IRR? | B2: 15.00%
D4: Division of cash flow between investment income and return of principal
A5: Year | B5: Principal at beginning of year | C5: Cash flow at end of year | D5: Income | E5: Principal
A6: 1 | B6: 1,000.00 | C6: 300 | D6: =$B$2*B6 -> 150.00 | E6: =C6-D6 -> 150.00 | F6: =getformula(E6) -> <-- =C6-D6
A7: 2 | B7: =B6-E6 -> 850.00 | C7: 200 | D7: =$B$2*B7 -> 127.50 | E7: =C7-D7 -> 72.50
A8: 3 | B8: =B7-E7 -> 777.50 | C8: 150 | D8: =$B$2*B8 -> 116.63 | E8: =C8-D8 -> 33.38
A9: 4 | B9: =B8-E8 -> 744.13 | C9: 600 | D9: =$B$2*B9 -> 111.62 | E9: =C9-D9 -> 488.38
A10: 5 | B10: =B9-E9 -> 255.74 | C10: 900 | D10: =$B$2*B10 -> 38.36 | E10: =C10-D10 -> 861.64
A11: 6 | B11: =B10-E10 -> -605.89
A15: Direct calculation of IRR
A16: Year | B16: Cash flow
A17: 0 | B17: -1,000
A18: 1 | B18: =C6 -> 300
A19: 2 | B19: =C7 -> 200
A20: 3 | B20: =C8 -> 150
A21: 4 | B21: =C9 -> 600
A22: 5 | B22: =C10 -> 900
A24: IRR | B24: =IRR(B17:B22) -> 24.44% | C24: =getformula(B24) -> <-- =IRR(B17:B22)

Sheet Page 26, bottom
A1: USING EXCEL'S RATE FUNCTION TO COMPUTE THE IRR
A2: Initial investment | B2: 1,000
A3: Periodic cash flow | B3: 100
A4: Number of payments | B4: 30
A5: IRR | B5: =RATE(B4,B3,-B2) -> 9.307% | C5: =getformula(B5) -> <-- =RATE(B4,B3,-B2)

Sheet Pages 27-28
A1: MULTIPLE INTERNAL RATES OF RETURN
A2: Discount rate | B2: 6%
A3: NPV | B3: =NPV(B2,B7:B11)+B6 -> -3.99 | C3: =getformula(B3) -> <-- =NPV(B2,B7:B11)+B6 | G3: DATA TABLE
G4: Discount rate | H4: NPV
A5: Year | B5: Cash flow | H5: =B3 -> -3.99 | I5: ="Table header, "&getformula(H5) -> Table header, <-- =B3
A6: 0 | B6: -145 | G6: 0% | H6: -20.00
A7: 1 | B7: 100 | G7: 3% | H7: -10.51
A8: 2 | B8: 100 | G8: 6% | H8: -3.99
A9: 3 | B9: 100 | G9: 9% | H9: 0.24
A10: 4 | B10: 100 | G10: 12% | H10: 2.69
A11: 5 | B11: -275 | G11: 15% | H11: 3.77
G12: 18% | H12: 3.80
G13: 21% | H13: 3.02
G14: 24% | H14: 1.62
G15: 27% | H15: -0.24
G16: 30% | H16: -2.44
G17: 33% | H17: -4.90
G18: 36% | H18: -7.53
G19: 39% | H19: -10.27
G21: Note: For a discussion of how to create data tables in Excel, see Chapter 31.
A29: Identifying the two IRRs
A30: First IRR | B30: =IRR(B6:B11,0) -> 8.78% | C30: =getformula(B30) -> <-- =IRR(B6:B11,0)
A31: Second IRR | B31: =IRR(B6:B11,0.3) -> 26.65% | C31: =getformula(B31) -> <-- =IRR(B6:B11,0.3)

Sheet Page 29
A1: FLAT PAYMENT SCHEDULES
A2: Loan principal | B2: 10,000
A3: Interest rate | B3: 7%
A4: Loan term | B4: 6 | C4: <-- Number of years over which loan is repaid
A5: Annual payment | B5: =PMT(B3,B4,-B2) -> 2,097.96 | C5: =getformula(B5) -> <-- =PMT(B3,B4,-B2)
E7: Split payment into:
B8: Year | C8: Principal at beginning of year | D8: Payment at end of year | E8: Interest | F8: Return of principal
B9: 1 | C9: =B2 -> 10,000.00 | D9: =$B$5 -> 2,097.96 | E9: =$B$3*C9 -> 700.00 | F9: =D9-E9 -> 1,397.96
B10: 2 | C10: =C9-F9 -> 8,602.04 | D10: 2,097.96 | E10: 602.14 | F10: 1,495.82
B11: 3 | C11: 7,106.23 | D11: 2,097.96 | E11: 497.44 | F11: 1,600.52
B12: 4 | C12: 5,505.70 | D12: 2,097.96 | E12: 385.40 | F12: 1,712.56
B13: 5 | C13: 3,793.15 | D13: 2,097.96 | E13: 265.52 | F13: 1,832.44
B14: 6 | C14: 1,960.71 | D14: 2,097.96 | E14: 137.25 | F14: 1,960.71
B15: 7 | C15: 0.00

Sheet Page 30
A1: FLAT PAYMENT SCHEDULES
A2: Loan principal | B2: 10,000
A3: Interest rate | B3: 7%
A4: Loan term | B4: 6 | C4: <-- Number of years over which loan is repaid
A5: Annual payment | B5: =PMT(B3,B4,-B2) -> 2,097.96 | C5: =getformula(B5) -> <-- =PMT(B3,B4,-B2)
E7: Split payment into:
B8: Year | C8: Principal at beginning of year | D8: Payment at end of year | E8: Interest | F8: Return of principal
B9: 1 | C9: =B2 -> 10,000.00 | D9: =$B$5 -> 2,097.96 | E9: =$B$3*C9 -> 700.00 | F9: =D9-E9 -> 1,397.96
B10: 2 | C10: =C9-F9 -> 8,602.04 | D10: 2,097.96 | E10: 602.14 | F10: 1,495.82
B11: 3 | C11: 7,106.23 | D11: 2,097.96 | E11: 497.44 | F11: 1,600.52
B12: 4 | C12: 5,505.70 | D12: 2,097.96 | E12: 385.40 | F12: 1,712.56
B13: 5 | C13: 3,793.15 | D13: 2,097.96 | E13: 265.52 | F13: 1,832.44
B14: 6 | C14: 1,960.71 | D14: 2,097.96 | E14: 137.25 | F14: 1,960.71
B15: 7 | C15: 0.00

Sheet Page 31
A1: SIMPLE FUTURE VALUE
A2: Interest | B2: 10%
A4: Year | B4: Account balance, beginning of year | C4: Interest earned during year | D4: Total in account, end year
A5: 1 | B5: 1,000.00 | C5: =$B$2*B5 -> 100.00 | D5: =C5+B5 -> 1,100.00 | E5: =getformula(D5) -> <-- =C5+B5
A6: 2 | B6: =D5 -> 1,100.00 | C6: =$B$2*B6 -> 110.00 | D6: =C6+B6 -> 1,210.00 | E6: =getformula(D6) -> <-- =C6+B6
A7: 3 | B7: =D6 -> 1,210.00 | C7: 121.00 | D7: 1,331.00
A8: 4 | B8: 1,331.00 | C8: 133.10 | D8: 1,464.10
A9: 5 | B9: 1,464.10 | C9: 146.41 | D9: 1,610.51
A10: 6 | B10: 1,610.51 | C10: 161.05 | D10: 1,771.56
A11: 7 | B11: 1,771.56 | C11: 177.16 | D11: 1,948.72
A12: 8 | B12: 1,948.72 | C12: 194.87 | D12: 2,143.59
A13: 9 | B13: 2,143.59 | C13: 214.36 | D13: 2,357.95
A14: 10 | B14: 2,357.95 | C14: 235.79 | D14: 2,593.74
A15: 11 | B15: 2,593.74
A17: A simpler way | C17: =B5*(1+B2)^10 -> 2,593.74 | D17: =getformula(C17) -> <-- =B5*(1+B2)^10

Sheet Page 32
A1: FUTURE VALUE WITH ANNUAL DEPOSITS
A2: Interest | B2: 10%
A3: Annual deposit | B3: 1,000 | C3: <-- Made today and at beginning of each of next 9 years
A4: Number of deposits | B4: 10
A6: Year | B6: Account balance, beginning of year | C6: Deposit at beginning of year | D6: Interest earned during year | E6: Total in account, end year
A7: 1 | B7: 0.00 | C7: 1,000 | D7: =$B$2*(C7+B7) -> 100.00 | E7: =D7+C7+B7 -> 1,100.00 | F7: =getformula(E7) -> <-- =D7+C7+B7
A8: 2 | B8: =E7 -> 1,100.00 | C8: 1,000 | D8: =$B$2*(C8+B8) -> 210.00 | E8: =D8+C8+B8 -> 2,310.00 | F8: =getformula(E8) -> <-- =D8+C8+B8
A9: 3 | B9: =E8 -> 2,310.00 | C9: =C8 -> 1,000 | D9: =$B$2*(C9+B9) -> 331.00 | E9: =D9+C9+B9 -> 3,641.00
A10: 4 | B10: 3,641.00 | C10: =C9 -> 1,000 | D10: 464.10 | E10: 5,105.10
A11: 5 | B11: 5,105.10 | C11: 1,000 | D11: 610.51 | E11: 6,715.61
A12: 6 | B12: 6,715.61 | C12: 1,000 | D12: 771.56 | E12: 8,487.17
A13: 7 | B13: 8,487.17 | C13: 1,000 | D13: 948.72 | E13: 10,435.89
A14: 8 | B14: 10,435.89 | C14: 1,000 | D14: 1,143.59 | E14: 12,579.48
A15: 9 | B15: 12,579.48 | C15: 1,000 | D15: 1,357.95 | E15: 14,937.42
A16: 10 | B16: 14,937.42 | C16: 1,000 | D16: 1,593.74 | E16: 17,531.17
A18: Future value | B18: =FV(B2,B4,-B3,,1) -> 17,531.17 | C18: =getformula(B18) -> <-- =FV(B2,B4,-B3,,1)

Sheet Page 42
A1: USING XIRR TO COMPUTE THE ANNUALIZED INTERNAL RATE OF RETURN
A2: Date | B2: Cash flow
A3: 2014-01-01 | B3: -1,000
A4: 2014-03-03 | B4: 150
A5: 2014-07-04 | B5: 100
A6: 2014-10-12 | B6: 50
A7: 2014-12-25 | B7: 1,000
A9: IRR | B9: =XIRR(B3:B7,A3:A7) -> 37.19% | C9: =getformula(B9) -> <-- =XIRR(B3:B7,A3:A7)

Sheet Page 43
A1: USING XNPV TO COMPUTE THE NET PRESENT VALUE
A2: Annual discount rate | B2: 12%
A4: Date | B4: Cash flow
A5: 2014-01-01 | B5: -1,000
A6: 2015-03-03 | B6: 100
A7: 2015-07-04 | B7: 195
A8: 2016-10-12 | B8: 350
A9: 2017-12-25 | B9: 800
A11: Net present value | B11: =XNPV(B2,B5:B9,A5:A9) -> 16.80 | C11: =getformula(B11) -> <-- =XNPV(B2,B5:B9,A5:A9)
A13: Note that XNPV has a different syntax from NPV ! XNPV requires all the cash flows, including the initial cash flow, whereas NPV assumes that the first cash flow occurs one period hence.

Sheet Page 44, top
A1: PROBLEM WITH XNPV XNPV does not work with zero or negative discount rates
A2: Discount rate | B2: -3.00%
A3: Net present value | B3: =XNPV(B2,B7:B13,A7:A13) ->  | C3: =getformula(B3) -> <-- =XNPV(B2,B7:B13,A7:A13)
B4: =nXNPV(B2,B7:B13,A7:A13) -> -194.87 | C4: =getformula(B4) -> <-- =nXNPV(B2,B7:B13,A7:A13)
A6: Date | B6: Cash flow
A7: 2014-06-30 | B7: -500
A8: 2015-02-14 | B8: 100
A9: 2016-02-14 | B9: 300
A10: 2017-02-14 | B10: 400
A11: 2018-02-14 | B11: 600
A12: 2019-02-14 | B12: 800
A13: 2020-02-14 | B13: -1,800

Sheet Page 44, bottom
A1: PROBLEMS WITH XIRR
A2: Discount rate | B2: 22.00%
A3: Net present value | B3: =XNPV(B2,B9:B15,A9:A15) -> 64.96186268 | C3: =getformula(B3) -> <-- =XNPV(B2,B9:B15,A9:A15)
A4: IRR | B4: =XIRR(B9:B15,A9:A15) ->  | C4: =getformula(B4)&" , no Guess" -> <-- =XIRR(B9:B15,A9:A15) , no Guess
B5: =XIRR(B9:B15,A9:A15,35%) ->  | C5: =getformula(B5)&", Guess = 35%" -> <-- =XIRR(B9:B15,A9:A15,35%), Guess = 35%
B6: =XIRR(B9:B15,A9:A15,5%) ->  | C6: =getformula(B6)&" , Guess = 5%" -> <-- =XIRR(B9:B15,A9:A15,5%) , Guess = 5%
A8: Date | B8: Cash flow | D8: Data table: XNPV as function of discount rate
A9: 2014-06-30 | B9: -500
A10: 2015-02-14 | B10: 100 | D10: Rate | E10: =B3 -> 64.962 | F10: =getformula(E10)&", data table header" -> <-- =B3, data table header
A11: 2016-02-14 | B11: 300 | D11: 0.1% | E11: -97.366
A12: 2017-02-14 | B12: 400 | D12: 2.5% | E12: -42.753
A13: 2018-02-14 | B13: 600 | D13: 4.9% | E13: -2.310
A14: 2019-02-14 | B14: 800 | D14: 7.3% | E14: 26.837
A15: 2020-02-14 | B15: -1,800 | D15: 9.7% | E15: 46.983
D16: 12.1% | E16: 59.961
D17: 14.5% | E17: 67.240
D18: 16.9% | E18: 70.000
D19: 19.3% | E19: 69.191
D20: 21.7% | E20: 65.578
D21: 24.1% | E21: 59.780
D22: 26.5% | E22: 52.296
D23: 28.9% | E23: 43.528
D24: 31.3% | E24: 33.803
D25: 33.7% | E25: 23.384
D26: 36.1% | E26: 12.484
D27: 38.5% | E27: 1.272
D28: 40.9% | E28: -10.113

Sheet Page 45
A1: NXIRR FIXES THE XIRR BUG
A2: Discount rate | B2: -3.00%
A3: IRR | B3: =nXIRR(B8:B14,A8:A14) -> 5.06% | C3: =getformula(B3)&" , no Guess" -> <-- =nXIRR(B8:B14,A8:A14) , no Guess
B4: =nXIRR(B8:B14,A8:A14,35%) -> 38.77% | C4: =getformula(B4)&", Guess = 35%" -> <-- =nXIRR(B8:B14,A8:A14,35%), Guess = 35%
B5: =nXIRR(B8:B14,A8:A14,5%) -> 5.06% | C5: =getformula(B5)&" , Guess = 5%" -> <-- =nXIRR(B8:B14,A8:A14,5%) , Guess = 5%
A7: Date | B7: Cash flow
A8: 2014-06-30 | B8: -500
A9: 2015-02-14 | B9: 100
A10: 2016-02-14 | B10: 300
A11: 2017-02-14 | B11: 400
A12: 2018-02-14 | B12: 600
A13: 2019-02-14 | B13: 800
A14: 2020-02-14 | B14: -1,800
